Cogmind - Beta 13 @@@ ROGUE MODE // 2024.04.28 @ 16:36:09 Player: Cherman0 Result: Self-destructed Performance ------------- Evolutions (2) 1000 Regions Visited (5) 1000 Robots Destroyed (66) 330 Value Destroyed (1532) 1532 Prototype IDs (27) 540 Alien Tech Used (0) 0 Bonus (180) 180 TOTAL SCORE: 4582 Bonus ------- Aligned with FarCom 300 Friendly Fire -120 Cogmind --------- Core Integrity 465/550 Matter 295/300 Energy 100/100 System Corruption 0% Temperature Cool (0) Movement Treading (400) Ox3 Location -8/Materials Parts ------- > --- POWER (1) -------- (None) > --- PROPULSION (3) --- Light Treads Light Treads Improved Treads > --- UTILITY (5) ------ Humpback Hardened Light Armor Plating System Shield System Shield > --- WEAPON (2) ------- Enhanced Autogun Enhanced Autogun > --- INVENTORY (35) --- Improved Ion Engine Light Treads Light Treads Light Treads Light Treads Light Treads Light Treads Large Storage Unit High-capacity Matter Pod (200) Improved Signal Interpreter Improved Terrain Scanner Seismic Detector Seismic Detector Light Armor Plating Light Armor Plating Shield Generator PSU Rigger EM Pulse Cannon Particle Cannon Enhanced Autogun Enhanced Autogun XL Autogun Array Missile Launcher Datajack Heavy Mace Peak State ------------ > --- POWER ------------ Light Nuclear Core > --- PROPULSION ------- Light Treads Light Treads Improved Treads > --- UTILITY ---------- Humpback Improved Terrain Scanner Improved Utility Shielding PSU Rigger > --- WEAPON ----------- Enhanced Autogun Enhanced Autogun > --- INVENTORY -------- Ion Engine Light Ion Engine Light Ion Engine Light Treads Light Treads Light Treads Light Treads Light Treads Light Treads Large Storage Unit High-capacity Matter Pod Improved Signal Interpreter Seismic Detector Seismic Detector Shield Generator Hacking Suite Particle Cannon Particle Cannon Firepult Minigun Enhanced Autogun Enhanced Autogun Enhanced Autogun Enhanced Autogun XL Autogun Array Light Cannon Grenade Launcher Rocket Launcher Mini Grenade Launcher Mining Laser Heavy Mace [Rating: 42] Favorites ----------- Power Ion Engine Engine Ion Engine Power Core Light Nuclear Core Propulsion Light Treads Treads Light Treads Leg Aluminum Leg Utility Humpback Device Seismic Detector Storage Humpback Hackware System Shield Protection Improved Utility Shielding Weapon Particle Cannon Energy Gun Medium Laser Energy Cannon Particle Cannon Ballistic Gun Enhanced Autogun Ballistic Cannon Light Cannon Launcher Grenade Launcher Impact Weapon Heavy Mace Build | -11 -10 -10 -10 -9 -8 ------- Run | Yrd Mat Min Exi Min Mat Slots Evolved 4 | . . . . . 4 Power . | . . . . . . Propulsion 1 | . . . . . 1 Utility 3 | . . . . . 3 Weapon . | . . . . . . Parts Attached 52 | 4 14 1 1 2 30 Power 4 | . 1 . . 1 2 Engine 2 | . 1 . . 1 . Core 2 | . . . . . 2 Reactor . | . . . . . . Propulsion 11 | 2 . . . 1 8 Treads 11 | 2 . . . 1 8 Leg . | . . . . . . Wheel . | . . . . . . Hover . | . . . . . . Flight . | . . . . . . Utility 11 | 1 2 . 1 . 7 Device 4 | 1 1 . . . 2 Storage 3 | . 1 . 1 . 1 Processor . | . . . . . . Hackware 2 | . . . . . 2 Protection 2 | . . . . . 2 Artifact . | . . . . . . Weapon 26 | 1 11 1 . . 13 Energy Gun 4 | 1 3 . . . . Energy Cannon 1 | . 1 . . . . Ballistic Gun 8 | . . . . . 8 Ballistic Cannon 4 | . 3 . . . 1 Launcher 6 | . 4 1 . . 1 Special Weapon . | . . . . . . Impact Weapon 3 | . . . . . 3 Slashing Weapon . | . . . . . . Piercing Weapon . | . . . . . . Special Melee Weapon . | . . . . . . Unidentified Prototypes 2 | . . . . . 2 Parts Lost 12 | . . . . . 12 Power 2 | . . . . . 2 Propulsion 2 | . . . . . 2 Utility 3 | . . . . . 3 Weapon 5 | . . . . . 5 Highest Loss Streak 9 | . . . . . 9 To Critical Strikes . | . . . . . . Average Slot Usage (%) 89 | . 100 100 90 85 82 Engine 10 | . 14 14 14 14 2 Core 1 | . . . . . 6 Treads 27 | . 28 28 28 28 26 Device 8 | . 14 14 4 . 11 Storage 12 | . 14 14 13 14 8 Protection 1 | . . . . . 5 Energy Gun 3 | . 20 . . . . Energy Cannon 8 | . . 14 14 14 3 Ballistic Gun 3 | . . . . . 11 Launcher 8 | . 4 9 14 14 1 Naked Turns . | . . . . . . Heaviest Build 219 | 12 33 33 212 214 219 Greatest Support 63 | 40 40 40 40 43 63 Greatest Overweight (x) 5 | . . . 5 5 3 Average Overweight (x) 1 | . . . 1 4 3 Largest Inventory Capacity 35 | 8 15 15 35 35 35 Average Capacity 27 | 8 10 15 27 35 34 Most Carried 35 | 6 15 15 24 28 35 Average Carried 21 | 2 8 14 18 26 30 Final Capacity 35 | 8 15 15 35 35 35 Final Carried 28 | 4 15 15 24 28 28 Class Distribution -------------------- 40% | Hauler-Mutant 33% | Mutant 24% | Hauler-Skirmisher Dominant Class ---------------- Mutant | -10/Materials Mutant | -10/Mines Hauler-Mutant | -10/Exiles Hauler-Mutant | -9/Mines Hauler-Skirmisher | -8/Materials Resources | -11 -10 -10 -10 -9 -8 ----------- Run | Yrd Mat Min Exi Min Mat Matter Collected 1833 | 240 473 28 32 29 1031 Remotely . | . . . . . . Salvage Created 2093 | 76 557 20 . 13 1427 Parts 134 | 4 43 8 . 2 77 Haulers Intercepted 6 | . 2 . . . 4 Recyclers Shooed 3 | 1 . . . . 2 Parts Field Recycled . | . . . . . . Retrieved Matter . | . . . . . . Parts Self-Destructed . | . . . . . . Prevented . | . . . . . . Kills | -11 -10 -10 -10 -9 -8 ------- Run | Yrd Mat Min Exi Min Mat Combat Hostiles Destroyed 42 | . 14 3 . 3 22 Guns 19 | . 4 . . . 15 Cannons 8 | . 2 . . . 6 AOE 14 | . 8 3 . 3 . Classes Destroyed 11 | 2 6 . . . 3 Worker 3 | . 1 1 . . 1 Tunneler 1 | 1 . . . . . Hauler 6 | . 2 . . . 4 Recycler 5 | 1 2 . . . 2 Operator 4 | . 3 . . . 1 Watcher 4 | . 3 . . . 1 Swarmer 15 | . 6 3 . 3 3 Grunt 20 | . 8 . . . 12 Brawler 1 | . . . . . 1 Sentry 6 | . . . . . 6 Hunter 1 | . . . . . 1 Best Kill Streak 5 | 1 5 4 . 3 5 Combat Bots Only 4 | . 3 3 . 3 4 Max Kills in Single Turn 3 | 1 2 3 . 1 1 Gunslinging . | . . . . . . Exploded 2 | . 2 2 . 1 . Melee . | . . . . . . Uniques/NPCs Destroyed . | . . . . . . Combat | -11 -10 -10 -10 -9 -8 -------- Run | Yrd Mat Min Exi Min Mat Hostile Shots Fired 149 | . 31 3 . 5 110 Missed 26 | . 11 . . 1 14 Damage Taken 1609 | . 211 21 . 32 1345 Core 154 | . 60 . . 9 85 Absorbed by Shields . | . . . . . . Redirected to Shielding 106 | . . . . . 106 Regen/Repaired (Parts) 331 | . . . . . 331 Core Remaining (%) 86 | 100 . . . 72 . Volleys Fired 188 | 6 70 2 . 3 107 Largest 2 | 2 2 1 . 1 2 Hottest 103 | 90 90 30 . 30 103 Shots Fired 328 | 12 113 2 . 3 198 Gun 246 | 12 90 . . . 144 Cannon 65 | . 12 . . . 53 Launcher 17 | . 11 2 . 3 1 Special . | . . . . . . Kinetic 174 | . 12 . . . 162 Thermal 137 | 12 90 . . . 35 Explosive 17 | . 11 2 . 3 1 Electromagnetic . | . . . . . . Robot Hit Streak 16 | 4 15 . . 16 9 Robot Miss Streak 6 | 2 6 . . 1 5 Penetration Max . | . . . . . . Secondary Targets 2 | . . . . . 2 Max Gunslinging Chain 1 | . . . . . 1 Shots Hit Robots 199 | 6 63 . . 2 128 Core Hits 95 | 3 39 5 . 2 46 Critical Kills 3 | . . . . . 3 Critical Parts Destroyed . | . . . . . . Critical Strikes 12 | . 8 . . . 4 Burn 7 | . 7 . . . . Meltdown 1 | . . . . . 1 Destroy 2 | . . . . . 2 Blast 2 | . 1 . . . 1 Melee Attacks 3 | . . . . . 3 Impact 3 | . . . . . 3 Slashing . | . . . . . . Piercing . | . . . . . . Sneak Attacks . | . . . . . . Combat Hostiles . | . . . . . . Follow-up Attacks . | . . . . . . Damage Inflicted 4266 | 68 1421 158 . 246 2373 Guns 2438 | 68 677 . . . 1693 Cannons 726 | . 84 . . . 642 Explosions 1055 | . 651 158 . 246 . Melee . | . . . . . . Ramming 47 | . 9 . . . 38 Kinetic 1991 | . 84 . . . 1907 Thermal 1173 | 68 677 . . . 428 Explosive 1055 | . 651 158 . 246 . Electromagnetic . | . . . . . . Impact . | . . . . . . Slashing . | . . . . . . Piercing . | . . . . . . Highest Corruption . | . . . . . . Average Corruption . | . . . . . . Corruption Purged . | . . . . . . Corruption Blocked . | . . . . . . Overload Shots . | . . . . . . Overflow Damage 42 | . 4 . . 24 14 Projectiles 14 | . . . . . 14 Explosions 28 | . 4 . . 24 . Melee . | . . . . . . Knockbacks 5 | . . . . . 5 Impact . | . . . . . . Kinetic 3 | . . . . . 3 Secondary 2 | . . . . . 2 Self-Inflicted Damage . | . . . . . . Shots . | . . . . . . Rammed 6 | . 2 . . . 4 Targets Rammed 6 | . 2 . . . 4 Kicked . | . . . . . . Crushed . | . . . . . . Highest Temperature 180 | 120 180 . . . 180 Average Temperature 44 | 51 40 . . . 47 Received Heat Transfer 579 | . 66 . . . 513 Siege Activations . | . . . . . . Robots Corrupted . | . . . . . . Combat Hostiles . | . . . . . . Parts Fried . | . . . . . . Impact Corruptions . | . . . . . . Robots Melted 1 | . . . . . 1 Combat Hostiles 1 | . . . . . 1 Parts Melted 13 | . 7 . . . 6 Heat Transferred 3326 | 186 2363 . . . 777 Parts Sabotaged . | . . . . . . Parts Stolen . | . . . . . . Parts Stripped . | . . . . . . Power Chain Reactions . | . . . . . . Alert | -11 -10 -10 -10 -9 -8 ------- Run | Yrd Mat Min Exi Min Mat Peak Influence 364 | 10 231 137 . 99 364 Initial 51 | . 6 51 . . . Average 112 | 6 121 55 . 17 188 Maximum Alert Level 1 | . 1 . . . 1 Low Security (%) 71 | 100 88 100 . 100 33 Level 1 28 | . 11 . . . 66 Level 2 . | . . . . . . Level 3 . | . . . . . . Level 4 . | . . . . . . Level 5 . | . . . . . . High Security . | . . . . . . Max Security . | . . . . . . Squads Dispatched 6 | . 3 . . . 3 Investigation . | . . . . . . Extermination . | . . . . . . Reinforcement 6 | . 3 . . . 3 Assault . | . . . . . . Garrison . | . . . . . . Intercept . | . . . . . . Searches Triggered . | . . . . . . Construction Impeded 1 | . . . . . 1 Haulers Reinforced . | . . . . . . Active Scanning Responses . | . . . . . . Cargo Convoy Interrupts . | . . . . . . Stealth | -11 -10 -10 -10 -9 -8 --------- Run | Yrd Mat Min Exi Min Mat Distress Signals 4 | . 2 . . . 2 Communications Jammed . | . . . . . . Distress Signals . | . . . . . . Times Spotted 64 | . 24 3 . 2 35 Peak Tracking Total 5 | . 4 3 . 2 5 Tactical Retreats 6 | . . . . . 6 Traps | -11 -10 -10 -10 -9 -8 ------- Run | Yrd Mat Min Exi Min Mat Traps Triggered 1 | . 1 . . . . Indirectly . | . . . . . . Trap Hack Attempts . | . . . . . . Triggered . | . . . . . . Disarmed . | . . . . . . Reprogrammed . | . . . . . . Reused . | . . . . . . Traps Extracted . | . . . . . . Installed . | . . . . . . Triggered . | . . . . . . Objects Rigged 2 | . . . . . 2 Exploded 1 | . . . . . 1 Machines | -11 -10 -10 -10 -9 -8 ---------- Run | Yrd Mat Min Exi Min Mat Machines Disabled 3 | . 2 . . . 1 Max in Single Turn 1 | . 1 . . . 1 Machines Repaired . | . . . . . . Machines Dismantled . | . . . . . . Machines Sabotaged . | . . . . . . Overloaded Fab Kills . | . . . . . . Hacking | -11 -10 -10 -10 -9 -8 --------- Run | Yrd Mat Min Exi Min Mat Machines Accessed 13 | . 7 . 2 . 4 Terminals 8 | . 5 . . . 3 Fabricators . | . . . . . . Repair Stations 1 | . . . . . 1 Recycling Units 2 | . 2 . . . . Scanalyzers . | . . . . . . Garrison Access . | . . . . . . Total Hacks 37 | . 17 . 2 . 18 Successful 19 | . 7 . 2 . 10 Failed 18 | . 10 . . . 8 Catastrophic 4 | . 3 . . . 1 Database Lockouts . | . . . . . . Manual 19 | . 13 . 1 . 5 Terminals 20 | . 9 . . . 11 Fabricators . | . . . . . . Repair Stations 7 | . . . . . 7 Recycling Units 8 | . 8 . . . . Scanalyzers . | . . . . . . Garrison Access . | . . . . . . Terminal Hacks 9 | . 2 . 2 . 5 Record 1 | . . . 1 . . Prototype ID Bank 1 | . 1 . . . . Terminal Index 1 | . . . . . 1 Locate Traps 1 | . . . . . 1 Surveillance Status 1 | . . . . . 1 Hauler Manifests 2 | . 1 . . . 1 Zone Layout 1 | . . . . . 1 Derelict Proto ID Bank 1 | . . . 1 . . Fabricator Hacks . | . . . . . . Repair Station Hacks 4 | . . . . . 4 Scan Component 2 | . . . . . 2 Repair 2 | . . . . . 2 Recycling Unit Hacks . | . . . . . . Scanalyzer . | . . . . . . Garrison Access Hacks . | . . . . . . Unauthorized Hacks 6 | . 5 . . . 1 Terminals 2 | . 1 . . . 1 Operators 2 | . 1 . . . 1 Fabricators . | . . . . . . Repair Stations . | . . . . . . Recycling Units 4 | . 4 . . . . Reject 2 | . 2 . . . . Recyclers 1 | . 1 . . . . Mask 1 | . 1 . . . . Scanalyzers . | . . . . . . Garrison Access . | . . . . . . Data Cores Recovered . | . . . . . . Used . | . . . . . . Hacking Detections 10 | . 6 . . . 4 Full Trace Events 1 | . 1 . . . . Feedback Events . | . . . . . . Feedback Blocked . | . . . . . . Robot Schematics Acquired . | . . . . . . Robots Built . | . . . . . . Authchips . | . . . . . . Time . | . . . . . . Total Robot Build Rating . | . . . . . . Part Schematics Acquired . | . . . . . . Parts Built . | . . . . . . Authchips . | . . . . . . Time . | . . . . . . Total Part Build Rating . | . . . . . . Parts Repaired 2 | . . . . . 2 Time 58 | . . . . . 58 Parts Recycled . | . . . . . . Recycled Matter . | . . . . . . Retrieved Matter . | . . . . . . Retrieved Components . | . . . . . . Parts Scanalyzed . | . . . . . . Part Schematics Acquired . | . . . . . . Parts Damaged . | . . . . . . Bothacking | -11 -10 -10 -10 -9 -8 ------------ Run | Yrd Mat Min Exi Min Mat Used RIF Installer . | . . . . . . Robots Hacked . | . . . . . . Non-combat . | . . . . . . Combat . | . . . . . . Robot Hacks Applied . | . . . . . . Relay Couplers Released . | . . . . . . Fabnet Peak Effective % . | . . . . . . Robots Rewired . | . . . . . . Allies Hacked . | . . . . . . Hacks Repelled . | . . . . . . Allies | -11 -10 -10 -10 -9 -8 -------- Run | Yrd Mat Min Exi Min Mat Total Allies 3 | . . . . 3 . Largest Group 3 | . . . . 3 3 Highest-Rated Group 40 | . . . . 40 40 Highest-Rated Ally 16 | . . . . 16 16 Total Orders . | . . . . . . Ally Attacks 19 | . . . . . 19 Total Damage 124 | . . . . . 124 Kills 1 | . . . . . 1 Allies Corrupted . | . . . . . . Allies Melted . | . . . . . . Intel | -11 -10 -10 -10 -9 -8 ------- Run | Yrd Mat Min Exi Min Mat Robot Analysis Total . | . . . . . . Derelict Logs Recovered 3 | . . 1 . 2 . Drone Launches . | . . . . . . Drone Recoveries . | . . . . . . Exploration | -11 -10 -10 -10 -9 -8 ------------- Run | Yrd Mat Min Exi Min Mat Turns Passed 10785 | 88 2055 667 2395 2296 3284 Spaces Moved 3350 | 39 976 408 809 456 662 Core . | . . . . . . Treads 3350 | 39 976 408 809 456 662 Legs . | . . . . . . Wheels . | . . . . . . Hover . | . . . . . . Flight . | . . . . . . Fastest Speed 160 | 160 160 160 160 480 400 Average Speed 286 | 160 160 160 294 501 400 Slowest Speed 560 | 160 160 160 560 560 400 Overloaded Moves . | . . . . . . Propulsion Burnouts . | . . . . . . Robots Hopped . | . . . . . . Cave-ins Triggered . | . . . . . . Exploration Rate (%) 72 | 4 96 98 90 98 47 Regions Visited 5 Branch Regions 3 Pre-discovered Areas 1 | . . . 1 . . Known Exits Taken . | . . . . . . Unknown Exits Taken 5 | 1 1 1 1 1 . Scrap Searched 3 | . . 1 . 2 . Spaces Dug 23 | . 16 4 . . 3 Terrain Destroyed 112 | . 63 12 . 21 16 Melee 3 | . . . . . 3 Projectile . | . . . . . . AOE 109 | . 63 12 . 21 13 Terrain Rammed . | . . . . . . Walls Destroyed . | . . . . . . Machines Disabled . | . . . . . . Actions | -11 -10 -10 -10 -9 -8 --------- Run | Yrd Mat Min Exi Min Mat Total 4255 | 54 1352 422 826 463 1138 Wait 554 | . 272 8 . 1 273 Move 3345 | 38 975 407 808 455 662 Hop . | . . . . . . Pick Up 75 | 2 13 2 15 2 41 Fast Attach 10 | 1 1 . 1 . 7 Attach 7 | 2 . . . . 5 Detach . | . . . . . . Swap 35 | 1 13 1 . 2 18 Drop 30 | 4 6 2 2 . 16 Fire 188 | 6 70 2 . 3 107 Melee 3 | . . . . . 3 Ram . | . . . . . . Kick . | . . . . . . Crush 6 | . 2 . . . 4 Escape Stasis . | . . . . . . Rewire . | . . . . . . Trap 2 | . . . . . 2 Miscellaneous . | . . . . . . Route ------- -11/Scrapyard -10/Materials (discovered 4 exits: [*Mat x3] / [*Min]) -10/Mines (discovered 3 exits: [*Mat x2] / *Exi) -10/Exiles -9/Mines (discovered 2 exits: *Mat x2) -8/Materials (discovered 2 exits: [*Fac] / Sto) History --------- Turn | Location | Event 19 | -11/Scrapyard | Discovered new exit (range 3) 89 | -11/Scrapyard | Entered Materials 318 | -10/Materials | Build established: Mutant 622 | -10/Materials | Discovered new exit (range 3) 1144 | -10/Materials | Discovered new exit (range 12) 1374 | -10/Materials | Discovered new exit (range 15) 1654 | -10/Materials | Discovered new exit (range 14) 2144 | -10/Materials | Entered Mines 2249 | -10/Mines | Discovered new exit (range 7) 2256 | -10/Mines | Received a Rocket Launcher from a helpful Derelict 2298 | -10/Mines | Discovered new exit (range 10) 2805 | -10/Mines | Deemed a non-threat by the Exiles lab entrance 2805 | -10/Mines | Discovered new exit (range 5) 2811 | -10/Mines | Entered Exiles 2851 | -10/Exiles | Met 8R-AWN 2879 | -10/Exiles | Met EX-HEX 2952 | -10/Exiles | Met EX-DEC 3032 | -10/Exiles | Discovered new exit (range 14) 3135 | -10/Exiles | Learned location of Zion (-6) 3211 | -10/Exiles | Visited The Gauntlet 3402 | -10/Exiles | Met EX-BIN 3424 | -10/Exiles | Aligned with FarCom system 3426 | -10/Exiles | Given EX-Vault access code 3466 | -10/Exiles | Opened EX-Vault 3503 | -10/Exiles | Warned to stay clear of 0b10 Research branches 3978 | -10/Exiles | Build established: Hauler-Mutant 4206 | -10/Exiles | Found PSU Rigger 4213 | -10/Exiles | Found XL Autogun Array 4225 | -10/Exiles | Found Firepult 5206 | -10/Exiles | Stole three prototypes: PSU Rigger, Firepult, XL Autogun Array 5206 | -10/Exiles | Entered Mines 5504 | -9/Mines | Assisted by bots powering up and referring to "LRC-V3" 5744 | -9/Mines | Discovered new exit (range 7) 5856 | -9/Mines | Discovered new exit (range 6) 6667 | -9/Mines | Learned 2 Materials zone layouts 7502 | -9/Mines | Entered Materials 7502 | -8/Materials | Accompanied by 3 allies 7502 | -8/Materials | Evolved 4 slots: Propulsion x1, Utility x3 7503 | -8/Materials | Identified exit to Storage 7790 | -8/Materials | Build established: Hauler-Skirmisher 9536 | -8/Materials | Discovered new exit (range 11) 10284 | -8/Materials | Repaired Imp. Treads 10312 | -8/Materials | Repaired Humpback 10317 | -8/Materials | Lost 9 parts (2n2u5w) 10631 | -8/Materials | Build established: Hauler-Mutant 10786 | -8/Materials | Self-destructed Last Messages --------------- 10397_ Acquired Shield Generator. 10410_ Acquired Imp. Ion Engine. 10415_ Acquired Missile Launcher. 10420_ Acquired Lgt. Treads. 10425_ Acquired Enh. Autogun. 10438_ Connecting with Repair Station... 10459_ Acquired 40 matter. 10477_ ALERT: Hostiles spotted, dispatching reinforcements to Terminal M008. 10483_ R-06 Scavenger collects Imp. Heat Sink. 10486_ R-06 Scavenger collects Aluminum Leg. 10600_ Y-45 Defender destroyed. 10619_ Acquired 50 matter. 10637_ Acquired Lgt. Armor Plating. 10730_ G-47 Trooper destroyed. 10733_ Lgt. Nuclear Core destroyed. 10743_ G-47 Trooper suffers critical hit (Destroy). 10743_ G-47 Trooper destroyed. 10758_ Acquired 7 matter. 10762_ Acquired 85 matter. Map ----- +----------------------------------------------------+ | ###%# # """ ???????????????? | | ?##!# # ##### #####????????????????????? | | ?## # ### ##??# #?#??#???????????????????? | | ?##[###?# ###?# #??#??????????????????????##### | | ?## #?#?# #???#### ##?????????? ????????????? | | ### ## ?# ##?????# ## ?? ???????????????o??? "" | | ##### ###?#?## #?????????????????????????" "" | | #######?# #??#??## ##???? ???????????????????" "" | | #????#?## #?####?# ##???"?? ??????????????? "" | | ##??##??# #????### #?????? ??????????????????" | | #####???# ######## ## ??? ???????????????????" | | ##???# # # ##????? ?????????????????? | | #?#??# # """ # ##?????? ? ???????????????##### | | ###### # """ # ##?##?+???????????????????????? | | # # # """ # ##???# #??##??????????????????? | | # / + # #???## #?##? ?w???????????????? | | # # # # #??### ? ? ????#?????????????? | | # # ######## #????# #??????????????????????? | | # + ##?#?# #?? ??g?b??????????????? | | # ########## #???## ##??????g??#???????????? | | #### ##???##! ##### #?????????????????????? | | # #???##! [ = /#? ? ?????????????????? | | # ###?##! =[#### #? ???????????????????? | | #######?#?#! !%%#####+##?? ?? ??????????????? | | ###???????#! ==+ #?????????#???????????? | | ######?##?##! ## @ #?????????????????????? | | # #???###### ## " " #?????????#???????????? | | ! # T #???#?#??# ## "R" #?????????????????????? | | # #??##????# ## """ #?????????????????????? | | ! # ########## ## ##????????????????????? | | ####*// + #########?????????????????????? | | #// ####+##### #????#?#????#?????????????????? | | #// [# #?# #?????????????????????????????? | | # *# """#?# #?????#?????#?????????????????? | | # [# """#?# #?????????????????????????????? | | #### !! """#?# #?? ??????????????????????????? | | ##?### #?# #? ???????????????????????????? | | #????# #?# #???????? ????????????????????? | | #?#??########?? ??????????????????????????????? | | #??#?#????????? ??????????????????????????????? | | ####????#??#??????+??????????????????????????????? | | ?#?#???#?????????? ??????????????????????????????? | | ????#??#?????????????????????????????????????????? | | #???#?#???#??????????????????????????????????????? | | ??##???#?????????????????????????????????????????? | | ???????#?????????????????????????????????????????? | | ???#?????????????????????????????????????????????? | | #????????????????????????????????????????????????? | | ?????#?????????????????????????????????????????>?? | | ?#??#????????????????????????????????????????????? | +----------------------------------------------------+ Best States ------------- Heat Dissipation 31 Energy Generation 14 Energy Capacity 265 Matter Stores 300 Matter Capacity 300 Sight Range 16 Terrain Scan Range 16 Terrain Scan Density 10 Armor Coverage 150 Utility Shielding 66 Evasion (%) 40 Recoil Reduction 3 Defensive Hacking 20 Item Schematics ----------------- None Robot Schematics ------------------ None Fabricated ------------ Nothing Alien Tech Used ----------------- None Achievements -------------- None Challenges ------------ None Game ------ Seed MolecularParticleFlakker Manual? 0 Play Time 00:53:36 Cumulative 66.2 hours Start 2024.04.25 @ 23:30:58 End 2024.04.28 @ 16:36:09 Sessions 2 Manual Loads 0 Difficulty Rogue Special Mode None Game No. 40 Rogue 40 Adventurer 0 Explorer 0 Win Type - Total 0 Types 0/0/0/0/0/0/0/0/0 Lore% 28 Gallery% 38 Achievement% 32 Wizard Run 0 Options --------- Layout 0 ASCII 0 Keyboard 0 Movement Numpad Keybinds 1 Fullscreen 1 Font 18/SmallcapsGlow Map View 76x50 Zoom Use 0% Tactical HUD 1 Map Filters NONE Filters NONE Steam 1 RUN: adf66f5e-9cd2-47fb-bc30-6497fb10dfcb